[Event "*** SCC Grand Prix: Titled Tuesday Blitz"]
[Site "Chess.com"]
[Date "2020.10.13"]
[Round "2"]
[White "PavelChernomordik"]
[Black "frederiksvane"]
[Result "0-1"]
[WhiteElo "2334"]
[BlackElo "2670"]
[TimeControl "180+1"]
[EndTime "10:17:58 PDT"]
[Termination "frederiksvane won on time"]

1. e4 {[%clk 0:03:00.9]} 1... c5 {[%clk 0:03:00.2]} 2. Nc3 {[%clk 0:02:58.9]}
2... Nc6 {[%clk 0:02:56.6]} 3. Bb5 {[%clk 0:02:58.7]} 3... Nd4 {[%clk
0:02:56.8]} 4. Bc4 {[%clk 0:02:57.7]} 4... e6 {[%clk 0:02:57.2]} 5. Nge2 {[%clk
0:02:57.5]} 5... a6 {[%clk 0:02:56.4]} 6. Nxd4 {[%clk 0:02:54.3]} 6... cxd4
{[%clk 0:02:57.3]} 7. Ne2 {[%clk 0:02:54.3]} 7... b5 {[%clk 0:02:56.2]} 8. Bb3
{[%clk 0:02:53.5]} 8... Bc5 {[%clk 0:02:54.3]} 9. d3 {[%clk 0:02:53.6]} 9... Ne7
{[%clk 0:02:53.8]} 10. O-O {[%clk 0:02:53.9]} 10... Nc6 {[%clk 0:02:53.7]} 11.
f4 {[%clk 0:02:48]} 11... d6 {[%clk 0:02:25.3]} 12. f5 {[%clk 0:02:40.6]} 12...
e5 {[%clk 0:02:22.3]} 13. Bd5 {[%clk 0:02:34.1]} 13... Bb7 {[%clk 0:02:14.1]}
14. Ng3 {[%clk 0:02:33.7]} 14... f6 {[%clk 0:01:43.6]} 15. Qh5+ {[%clk
0:02:28.7]} 15... Kd7 {[%clk 0:01:35.1]} 16. Bd2 {[%clk 0:02:14.6]} 16... Qe7
{[%clk 0:01:30]} 17. Kh1 {[%clk 0:02:10]} 17... Nd8 {[%clk 0:01:24.5]} 18. Bb3
{[%clk 0:02:07.8]} 18... Rc8 {[%clk 0:01:16.7]} 19. Ne2 {[%clk 0:02:05.4]} 19...
Kc7 {[%clk 0:01:13.9]} 20. c3 {[%clk 0:02:02.9]} 20... dxc3 {[%clk 0:01:10.3]}
21. bxc3 {[%clk 0:01:56]} 21... Kb8 {[%clk 0:01:10.5]} 22. a4 {[%clk 0:01:54.5]}
22... Bb6 {[%clk 0:00:45.1]} 23. Rfb1 {[%clk 0:01:49.5]} 23... Qd7 {[%clk
0:00:34.7]} 24. Qf3 {[%clk 0:01:42.9]} 24... g6 {[%clk 0:00:27.3]} 25. fxg6
{[%clk 0:01:36.2]} 25... hxg6 {[%clk 0:00:28.2]} 26. Qxf6 {[%clk 0:01:33.9]}
26... Nc6 {[%clk 0:00:26.1]} 27. Qf1 {[%clk 0:01:26.1]} 27... Rcf8 {[%clk
0:00:24.4]} 28. Qe1 {[%clk 0:01:15.9]} 28... Qg4 {[%clk 0:00:21.7]} 29. Ng1
{[%clk 0:01:09.8]} 29... Rf2 {[%clk 0:00:15.6]} 30. Qxf2 {[%clk 0:01:05.1]}
30... Bxf2 {[%clk 0:00:16.5]} 31. Nf3 {[%clk 0:01:03.1]} 31... Rh3 {[%clk
0:00:10.1]} 32. Bd1 {[%clk 0:01:00.4]} 32... Rh8 {[%clk 0:00:07.2]} 33. axb5
{[%clk 0:00:57.1]} 33... axb5 {[%clk 0:00:08.1]} 34. Rxb5 {[%clk 0:00:51.8]}
34... Kc7 {[%clk 0:00:08.5]} 35. c4 {[%clk 0:00:31.5]} 35... Qd7 {[%clk
0:00:06.5]} 36. Rab1 {[%clk 0:00:28.8]} 36... Ba6 {[%clk 0:00:06.5]} 37. Rb6
{[%clk 0:00:26.9]} 37... Bxb6 {[%clk 0:00:05.8]} 38. Ba4 {[%clk 0:00:21.4]}
38... Rb8 {[%clk 0:00:06.2]} 39. Ra1 {[%clk 0:00:13.7]} 39... Bc5 {[%clk
0:00:05.8]} 40. Bd1 {[%clk 0:00:12]} 40... Bb7 {[%clk 0:00:05.9]} 41. h3 {[%clk
0:00:09.1]} 41... Ra8 {[%clk 0:00:06.5]} 42. Rb1 {[%clk 0:00:07.5]} 42... Nd4
{[%clk 0:00:07]} 43. Nxd4 {[%clk 0:00:04.1]} 43... Bxd4 {[%clk 0:00:07.9]} 44.
Bg4 {[%clk 0:00:03.3]} 44... Qf7 {[%clk 0:00:08.2]} 0-1

[Event "*** SCC Grand Prix: Titled Tuesday Blitz"]
[Site "Chess.com"]
[Date "2020.10.13"]
[Round "2"]
[White "googlegoom"]
[Black "Khnykin_Nikolay"]
[Result "1-0"]
[WhiteElo "2381"]
[BlackElo "2039"]
[TimeControl "180+1"]
[EndTime "10:17:58 PDT"]
[Termination "googlegoom won on time"]

1. Nf3 {[%clk 0:03:00.9]} 1... e6 {[%clk 0:02:58.3]} 2. b3 {[%clk 0:03:00.6]}
2... d5 {[%clk 0:02:58]} 3. Bb2 {[%clk 0:03:00.4]} 3... Nf6 {[%clk 0:02:57.3]}
4. e3 {[%clk 0:03:00.9]} 4... Bc5 {[%clk 0:02:55.4]} 5. Be2 {[%clk 0:03:01.4]}
5... O-O {[%clk 0:02:54.4]} 6. O-O {[%clk 0:03:01.9]} 6... Bd6 {[%clk
0:02:53.5]} 7. d4 {[%clk 0:03:02.2]} 7... c5 {[%clk 0:02:51.5]} 8. Nbd2 {[%clk
0:03:02.7]} 8... Nc6 {[%clk 0:02:50.3]} 9. c4 {[%clk 0:03:03.2]} 9... b6 {[%clk
0:02:43.5]} 10. Rc1 {[%clk 0:03:03.6]} 10... Bb7 {[%clk 0:02:42.3]} 11. Qc2
{[%clk 0:03:04.2]} 11... Nb4 {[%clk 0:02:41]} 12. Qb1 {[%clk 0:03:04.1]} 12...
Rc8 {[%clk 0:02:32.8]} 13. Rfd1 {[%clk 0:03:03.5]} 13... Ne4 {[%clk 0:02:25.5]}
14. Nxe4 {[%clk 0:02:49.6]} 14... dxe4 {[%clk 0:02:24.9]} 15. Ne1 {[%clk
0:02:50.2]} 15... Qh4 {[%clk 0:02:23.7]} 16. g3 {[%clk 0:02:49.6]} 16... Qh6
{[%clk 0:02:21.1]} 17. a3 {[%clk 0:02:37.3]} 17... Na6 {[%clk 0:02:15.1]} 18.
dxc5 {[%clk 0:02:34.4]} 18... Bxc5 {[%clk 0:02:10.9]} 19. b4 {[%clk 0:02:32.9]}
19... Bxe3 {[%clk 0:02:02]} 20. fxe3 {[%clk 0:02:31.2]} 20... Qxe3+ {[%clk
0:02:01.5]} 21. Kf1 {[%clk 0:02:31.9]} 21... f5 {[%clk 0:01:48.8]} 22. Bd4
{[%clk 0:02:09.6]} 22... Qh6 {[%clk 0:01:43.9]} 23. Kg1 {[%clk 0:01:43.4]} 23...
f4 {[%clk 0:01:38]} 24. gxf4 {[%clk 0:01:38.6]} 24... Rxf4 {[%clk 0:01:31.7]}
25. Ng2 {[%clk 0:01:29.6]} 25... e3 {[%clk 0:00:59.9]} 26. Bxe3 {[%clk
0:00:33.6]} 26... Qg5 {[%clk 0:00:57.2]} 27. Bf1 {[%clk 0:00:32.3]} 27... Rxf1+
{[%clk 0:00:55.1]} 28. Kxf1 {[%clk 0:00:33.2]} 28... Bxg2+ {[%clk 0:00:47.2]}
29. Ke2 {[%clk 0:00:32.4]} 29... Qg4+ {[%clk 0:00:43.9]} 30. Kd2 {[%clk
0:00:27.5]} 30... Rd8+ {[%clk 0:00:38.4]} 31. Kc3 {[%clk 0:00:27.7]} 31... Rf8
{[%clk 0:00:33.4]} 32. Qd3 {[%clk 0:00:24]} 32... Qh5 {[%clk 0:00:16.6]} 33. Rg1
{[%clk 0:00:22.2]} 33... Bb7 {[%clk 0:00:15.3]} 34. Bd4 {[%clk 0:00:20.5]} 34...
g6 {[%clk 0:00:13.4]} 35. Rcf1 {[%clk 0:00:19.7]} 35... Re8 {[%clk 0:00:10.9]}
36. Qe3 {[%clk 0:00:18.3]} 36... e5 {[%clk 0:00:10.1]} 37. Bxb6 {[%clk
0:00:13.8]} 37... axb6 {[%clk 0:00:09.9]} 38. Qxb6 {[%clk 0:00:14.4]} 38... Qh3+
{[%clk 0:00:09.5]} 39. Kb2 {[%clk 0:00:12.1]} 39... Qxh2+ {[%clk 0:00:07.1]} 40.
Qf2 {[%clk 0:00:12.8]} 40... Qxf2+ {[%clk 0:00:06.7]} 41. Rxf2 {[%clk
0:00:13.7]} 41... e4 {[%clk 0:00:06.7]} 42. c5 {[%clk 0:00:14.3]} 42... e3
{[%clk 0:00:06.3]} 43. Re2 {[%clk 0:00:14.9]} 43... Bf3 {[%clk 0:00:06.2]} 44.
Ree1 {[%clk 0:00:15.3]} 44... e2 {[%clk 0:00:05.4]} 45. Kc3 {[%clk 0:00:15.9]}
45... Nc7 {[%clk 0:00:02]} 46. a4 {[%clk 0:00:15.1]} 46... Nd5+ {[%clk
0:00:01.2]} 47. Kd4 {[%clk 0:00:14.8]} 47... Nf4 {[%clk 0:00:01.1]} 48. b5
{[%clk 0:00:13.9]} 1-0

[Event "*** SCC Grand Prix: Titled Tuesday Blitz"]
[Site "Chess.com"]
[Date "2020.10.13"]
[Round "2"]
[White "Azatic"]
[Black "bascheyaro"]
[Result "0-1"]
[WhiteElo "2493"]
[BlackElo "2717"]
[TimeControl "180+1"]
[EndTime "10:18:00 PDT"]
[Termination "bascheyaro won by resignation"]

1. e4 {[%clk 0:03:00.9]} 1... e6 {[%clk 0:03:00.1]} 2. d3 {[%clk 0:03:00.1]}
2... d5 {[%clk 0:03:01]} 3. Nd2 {[%clk 0:02:58.9]} 3... c5 {[%clk 0:03:01.2]} 4.
Ngf3 {[%clk 0:02:58.9]} 4... Nf6 {[%clk 0:03:00.8]} 5. g3 {[%clk 0:02:59.1]}
5... g6 {[%clk 0:03:01]} 6. Bg2 {[%clk 0:02:59.4]} 6... Bg7 {[%clk 0:03:01.5]}
7. O-O {[%clk 0:03:00]} 7... O-O {[%clk 0:03:01.5]} 8. Re1 {[%clk 0:03:00.5]}
8... Nc6 {[%clk 0:03:01.3]} 9. c3 {[%clk 0:02:45.8]} 9... b6 {[%clk 0:02:41.3]}
10. e5 {[%clk 0:02:43]} 10... Nd7 {[%clk 0:02:41.4]} 11. d4 {[%clk 0:02:43.2]}
11... f6 {[%clk 0:02:42]} 12. exf6 {[%clk 0:02:28.6]} 12... Qxf6 {[%clk
0:02:42.1]} 13. Nb3 {[%clk 0:02:24.5]} 13... c4 {[%clk 0:02:39.4]} 14. Bg5
{[%clk 0:02:20.7]} 14... Qf7 {[%clk 0:02:34.2]} 15. Nbd2 {[%clk 0:02:19.6]}
15... h6 {[%clk 0:02:33.3]} 16. Bf4 {[%clk 0:02:09.9]} 16... g5 {[%clk
0:02:32.6]} 17. Bd6 {[%clk 0:02:09.8]} 17... Re8 {[%clk 0:02:32.2]} 18. Ne5
{[%clk 0:02:04.7]} 18... Ncxe5 {[%clk 0:02:15.8]} 19. dxe5 {[%clk 0:02:05.6]}
19... Nc5 {[%clk 0:02:15.7]} 20. Bxc5 {[%clk 0:01:44.3]} 20... bxc5 {[%clk
0:02:12.5]} 21. Nxc4 {[%clk 0:01:43.5]} 21... Rf8 {[%clk 0:02:12.9]} 22. Qc2
{[%clk 0:01:35.8]} 22... Qf5 {[%clk 0:01:50.7]} 23. Qd2 {[%clk 0:01:03.8]} 23...
Rb8 {[%clk 0:01:28.3]} 24. Nd6 {[%clk 0:00:59.2]} 24... Qg6 {[%clk 0:01:28.3]}
25. Kh1 {[%clk 0:00:45.2]} 25... g4 {[%clk 0:01:19.4]} 26. Re2 {[%clk
0:00:35.1]} 26... h5 {[%clk 0:01:18.1]} 27. Rae1 {[%clk 0:00:32.5]} 27... Bh6
{[%clk 0:01:14]} 28. Qc2 {[%clk 0:00:20.1]} 28... Qxc2 {[%clk 0:01:11.5]} 29.
Rxc2 {[%clk 0:00:21]} 29... c4 {[%clk 0:01:01]} 30. Nxc8 {[%clk 0:00:20.5]}
30... Rbxc8 {[%clk 0:00:59.3]} 31. Kg1 {[%clk 0:00:20.8]} 31... Rf7 {[%clk
0:00:52.7]} 32. h3 {[%clk 0:00:21.1]} 32... Bf8 {[%clk 0:00:51.8]} 33. hxg4
{[%clk 0:00:20.9]} 33... hxg4 {[%clk 0:00:51.7]} 34. Ree2 {[%clk 0:00:13.7]}
34... Bc5 {[%clk 0:00:51.4]} 35. Bf1 {[%clk 0:00:13.1]} 35... Rf3 {[%clk
0:00:49.7]} 36. Kg2 {[%clk 0:00:12.4]} 36... a5 {[%clk 0:00:48]} 37. b3 {[%clk
0:00:10.2]} 37... cxb3 {[%clk 0:00:45.2]} 38. axb3 {[%clk 0:00:11.1]} 38... Rb8
{[%clk 0:00:45.4]} 39. b4 {[%clk 0:00:11.5]} 39... axb4 {[%clk 0:00:44.5]} 40.
cxb4 {[%clk 0:00:12.4]} 40... Bxb4 {[%clk 0:00:44.4]} 41. Rc6 {[%clk 0:00:12.9]}
41... Kf7 {[%clk 0:00:43.8]} 42. Rb2 {[%clk 0:00:12.7]} 42... Bd6 {[%clk
0:00:33.4]} 43. Rxb8 {[%clk 0:00:07.4]} 43... Bxb8 {[%clk 0:00:33.9]} 44. Be2
{[%clk 0:00:08.1]} 44... Rf5 {[%clk 0:00:34.5]} 45. Bxg4 {[%clk 0:00:08.2]}
45... Rxe5 {[%clk 0:00:35]} 46. f4 {[%clk 0:00:08.8]} 46... Re3 {[%clk
0:00:33.2]} 47. Rb6 {[%clk 0:00:08.4]} 47... Bc7 {[%clk 0:00:31.4]} 48. Rb7
{[%clk 0:00:07.4]} 48... Rc3 {[%clk 0:00:31.6]} 49. Bh5+ {[%clk 0:00:07.9]}
49... Kf6 {[%clk 0:00:31.6]} 50. Kh3 {[%clk 0:00:08.4]} 50... e5 {[%clk
0:00:27.6]} 51. fxe5+ {[%clk 0:00:08.2]} 51... Bxe5 {[%clk 0:00:27.7]} 52. Rb6+
{[%clk 0:00:07.7]} 52... Kg5 {[%clk 0:00:27.5]} 53. Be8 {[%clk 0:00:04.7]} 53...
Rxg3+ {[%clk 0:00:27.5]} 54. Kh2 {[%clk 0:00:04.7]} 54... Rb3+ {[%clk
0:00:27.7]} 55. Kg2 {[%clk 0:00:05.3]} 55... Rxb6 {[%clk 0:00:27.8]} 56. Kf3
{[%clk 0:00:06.2]} 56... Rb3+ {[%clk 0:00:27.3]} 0-1

[Event "*** SCC Grand Prix: Titled Tuesday Blitz"]
[Site "Chess.com"]
[Date "2020.10.13"]
[Round "2"]
[White "QuintilianoR"]
[Black "Bigfish1995"]
[Result "0-1"]
[WhiteElo "2622"]
[BlackElo "3105"]
[TimeControl "180+1"]
[EndTime "10:18:03 PDT"]
[Termination "Bigfish1995 won by resignation"]

1. e4 {[%clk 0:03:00.9]} 1... c6 {[%clk 0:02:58.8]} 2. d4 {[%clk 0:03:00.9]}
2... d5 {[%clk 0:02:59]} 3. exd5 {[%clk 0:03:01.8]} 3... cxd5 {[%clk 0:02:58.6]}
4. Bd3 {[%clk 0:03:01.6]} 4... Nf6 {[%clk 0:02:57.8]} 5. c3 {[%clk 0:02:59.7]}
5... g6 {[%clk 0:02:57]} 6. h3 {[%clk 0:02:58.7]} 6... Bf5 {[%clk 0:02:52.7]} 7.
Be2 {[%clk 0:02:55.2]} 7... h5 {[%clk 0:02:49.4]} 8. Nf3 {[%clk 0:02:55]} 8...
Nc6 {[%clk 0:02:48]} 9. O-O {[%clk 0:02:53.8]} 9... e6 {[%clk 0:02:46.1]} 10.
Re1 {[%clk 0:02:53.6]} 10... Ne4 {[%clk 0:02:41.8]} 11. Nbd2 {[%clk 0:02:50.9]}
11... Nd6 {[%clk 0:02:28.7]} 12. Nf1 {[%clk 0:02:47.6]} 12... Be7 {[%clk
0:02:23.2]} 13. Ng3 {[%clk 0:02:43.7]} 13... Ne4 {[%clk 0:02:20.5]} 14. Nxe4
{[%clk 0:02:15]} 14... Bxe4 {[%clk 0:02:03]} 15. Bd3 {[%clk 0:01:58.7]} 15...
Bxd3 {[%clk 0:01:44.6]} 16. Qxd3 {[%clk 0:01:57.8]} 16... g5 {[%clk 0:01:40.8]}
17. Ne5 {[%clk 0:01:50.9]} 17... Nxe5 {[%clk 0:01:37.7]} 18. Rxe5 {[%clk
0:01:34.7]} 18... g4 {[%clk 0:01:36.7]} 19. Bd2 {[%clk 0:01:17.7]} 19... Bd6
{[%clk 0:01:32.2]} 20. Bg5 {[%clk 0:01:03.7]} 20... Qc7 {[%clk 0:01:27.7]} 21.
Re2 {[%clk 0:01:01.3]} 21... Kd7 {[%clk 0:01:17]} 22. h4 {[%clk 0:00:54.7]}
22... Qc4 {[%clk 0:01:14]} 23. Qxc4 {[%clk 0:00:47]} 23... dxc4 {[%clk
0:01:13.9]} 24. Rd1 {[%clk 0:00:46.8]} 24... f5 {[%clk 0:01:09.3]} 25. Bf6
{[%clk 0:00:43.4]} 25... Rhe8 {[%clk 0:01:06.5]} 26. Be5 {[%clk 0:00:43.1]}
26... Be7 {[%clk 0:01:05]} 27. d5 {[%clk 0:00:42.7]} 27... exd5 {[%clk
0:01:04.9]} 28. Rxd5+ {[%clk 0:00:42.9]} 28... Kc6 {[%clk 0:01:05.3]} 29. Rd4
{[%clk 0:00:43.1]} 29... b5 {[%clk 0:00:47.3]} 30. Rf4 {[%clk 0:00:41.6]} 30...
Rad8 {[%clk 0:00:33.2]} 31. Rd4 {[%clk 0:00:12.8]} 31... Bxh4 {[%clk 0:00:31.7]}
32. Rxd8 {[%clk 0:00:11.7]} 32... Bxd8 {[%clk 0:00:29.5]} 33. f4 {[%clk
0:00:11.8]} 33... Bc7 {[%clk 0:00:22]} 34. Kf1 {[%clk 0:00:11.9]} 34... Bxe5
{[%clk 0:00:19.6]} 35. fxe5 {[%clk 0:00:12.8]} 35... Re6 {[%clk 0:00:16.2]} 36.
Kf2 {[%clk 0:00:12.5]} 36... Kd5 {[%clk 0:00:16.5]} 37. Kg3 {[%clk 0:00:11.9]}
37... Rxe5 {[%clk 0:00:16.1]} 38. Rd2+ {[%clk 0:00:12.8]} 38... Ke6 {[%clk
0:00:16]} 39. Rd8 {[%clk 0:00:12.7]} 39... Kf6 {[%clk 0:00:11.9]} 40. Rf8+
{[%clk 0:00:12.1]} 40... Kg7 {[%clk 0:00:08.5]} 41. Ra8 {[%clk 0:00:12.5]} 41...
Re2 {[%clk 0:00:08.5]} 42. Rxa7+ {[%clk 0:00:12.5]} 42... Kg6 {[%clk 0:00:09.1]}
43. a4 {[%clk 0:00:13.1]} 43... bxa4 {[%clk 0:00:08.1]} 44. Rxa4 {[%clk
0:00:12.9]} 44... Rxb2 {[%clk 0:00:07.7]} 45. Rxc4 {[%clk 0:00:13.1]} 45... Kg5
{[%clk 0:00:08.3]} 46. Kh2 {[%clk 0:00:13.4]} 46... h4 {[%clk 0:00:08.6]} 47.
Kg1 {[%clk 0:00:13.7]} 47... g3 {[%clk 0:00:08.5]} 48. Kf1 {[%clk 0:00:14.2]}
48... Rb1+ {[%clk 0:00:08.8]} 49. Ke2 {[%clk 0:00:14.5]} 49... Rg1 {[%clk
0:00:09.3]} 50. Kf3 {[%clk 0:00:13.6]} 50... Rf1+ {[%clk 0:00:09.7]} 51. Ke3
{[%clk 0:00:13.9]} 51... h3 {[%clk 0:00:09.6]} 0-1

[Event "*** SCC Grand Prix: Titled Tuesday Blitz"]
[Site "Chess.com"]
[Date "2020.10.13"]
[Round "2"]
[White "TrimitziosP7"]
[Black "AldokhinIvan"]
[Result "1-0"]
[WhiteElo "2825"]
[BlackElo "2549"]
[TimeControl "180+1"]
[EndTime "10:18:03 PDT"]
[Termination "TrimitziosP7 won by resignation"]

1. e4 {[%clk 0:02:58.6]} 1... c5 {[%clk 0:03:00.2]} 2. Nf3 {[%clk 0:02:56.7]}
2... e6 {[%clk 0:03:00.8]} 3. c3 {[%clk 0:02:54.7]} 3... Nf6 {[%clk 0:03:00.8]}
4. Bd3 {[%clk 0:02:53.2]} 4... d5 {[%clk 0:03:00.2]} 5. e5 {[%clk 0:02:52.8]}
5... Nfd7 {[%clk 0:03:00]} 6. Bc2 {[%clk 0:02:53.1]} 6... d4 {[%clk 0:02:53.6]}
7. cxd4 {[%clk 0:02:50.4]} 7... cxd4 {[%clk 0:02:47]} 8. O-O {[%clk 0:02:43.5]}
8... Nc6 {[%clk 0:02:47]} 9. Re1 {[%clk 0:02:42]} 9... Be7 {[%clk 0:02:31.2]}
10. Ba4 {[%clk 0:02:39.4]} 10... Nc5 {[%clk 0:02:24]} 11. d3 {[%clk 0:02:16.7]}
11... O-O {[%clk 0:02:22.1]} 12. Na3 {[%clk 0:02:06.9]} 12... Nxa4 {[%clk
0:01:58.3]} 13. Qxa4 {[%clk 0:02:06.1]} 13... Nb4 {[%clk 0:01:58.7]} 14. Qb3
{[%clk 0:01:58.5]} 14... b6 {[%clk 0:01:44.5]} 15. Bd2 {[%clk 0:01:56.3]} 15...
a5 {[%clk 0:01:40.5]} 16. Bxb4 {[%clk 0:01:38.7]} 16... Bxb4 {[%clk 0:01:38.3]}
17. Re2 {[%clk 0:01:27.4]} 17... Bb7 {[%clk 0:01:36.9]} 18. Ne1 {[%clk
0:01:19.5]} 18... Rc8 {[%clk 0:01:26.4]} 19. Nc4 {[%clk 0:01:08.6]} 19... Bd5
{[%clk 0:01:14.4]} 20. a3 {[%clk 0:01:01.2]} 20... Bxe1 {[%clk 0:00:36.7]} 21.
Raxe1 {[%clk 0:01:02.1]} 21... Qg5 {[%clk 0:00:36.5]} 22. g3 {[%clk 0:00:52.2]}
22... Qf5 {[%clk 0:00:30]} 23. f4 {[%clk 0:00:48]} 23... a4 {[%clk 0:00:17.6]}
24. Qxa4 {[%clk 0:00:37.7]} 24... Qxd3 {[%clk 0:00:17.2]} 25. Nxb6 {[%clk
0:00:27.9]} 25... Rc1 {[%clk 0:00:11.3]} 26. Nxd5 {[%clk 0:00:15.7]} 26... exd5
{[%clk 0:00:07.1]} 27. Rxc1 {[%clk 0:00:13.5]} 27... Qxe2 {[%clk 0:00:07.4]} 28.
Qc2 {[%clk 0:00:12]} 28... Qe3+ {[%clk 0:00:07.4]} 29. Kg2 {[%clk 0:00:12.3]}
29... d3 {[%clk 0:00:08.1]} 30. Qd1 {[%clk 0:00:10.8]} 30... d2 {[%clk
0:00:04.9]} 31. Rc2 {[%clk 0:00:07.6]} 31... Qe4+ {[%clk 0:00:05.4]} 32. Kf2
{[%clk 0:00:07.4]} 32... Qd4+ {[%clk 0:00:05.7]} 33. Ke2 {[%clk 0:00:05.3]}
33... f6 {[%clk 0:00:06.1]} 34. Qxd2 {[%clk 0:00:04.9]} 34... Qe4+ {[%clk
0:00:06.6]} 35. Kd1 {[%clk 0:00:05.1]} 35... fxe5 {[%clk 0:00:07.2]} 36. Rc5
{[%clk 0:00:04.3]} 36... d4 {[%clk 0:00:06.7]} 37. Rxe5 {[%clk 0:00:04.1]} 37...
Qb1+ {[%clk 0:00:06.8]} 38. Ke2 {[%clk 0:00:04.4]} 38... Qg1 {[%clk 0:00:06.7]}
39. Kf3 {[%clk 0:00:03.6]} 39... Qf1+ {[%clk 0:00:05.3]} 40. Kg4 {[%clk
0:00:03.5]} 40... g6 {[%clk 0:00:04.9]} 41. Qxd4 {[%clk 0:00:03.1]} 41... Qg2
{[%clk 0:00:02.2]} 42. Qd5+ {[%clk 0:00:03.1]} 42... Kh8 {[%clk 0:00:02.4]} 43.
Qxg2 {[%clk 0:00:03]} 43... h5+ {[%clk 0:00:03]} 44. Kg5 {[%clk 0:00:03.1]}
44... Kg7 {[%clk 0:00:03.3]} 45. Re7+ {[%clk 0:00:03.1]} 45... Kg8 {[%clk
0:00:03.8]} 46. Qd5+ {[%clk 0:00:02.8]} 46... Kh8 {[%clk 0:00:03.7]} 47. Qe5+
{[%clk 0:00:03]} 1-0

[Event "*** SCC Grand Prix: Titled Tuesday Blitz"]
[Site "Chess.com"]
[Date "2020.10.13"]
[Round "2"]
[White "tsvet2005"]
[Black "ChelsieMonica"]
[Result "1-0"]
[WhiteElo "2700"]
[BlackElo "2381"]
[TimeControl "180+1"]
[EndTime "10:18:07 PDT"]
[Termination "tsvet2005 won by resignation"]

1. d4 {[%clk 0:03:00.9]} 1... Nf6 {[%clk 0:02:56.1]} 2. c4 {[%clk 0:03:01.4]}
2... b6 {[%clk 0:02:54.8]} 3. f3 {[%clk 0:03:01.3]} 3... Bb7 {[%clk 0:02:55.6]}
4. e4 {[%clk 0:03:01.2]} 4... d6 {[%clk 0:02:55.8]} 5. Nc3 {[%clk 0:02:59.8]}
5... e5 {[%clk 0:02:55.8]} 6. d5 {[%clk 0:02:59.8]} 6... h6 {[%clk 0:02:54.7]}
7. g4 {[%clk 0:02:59.7]} 7... Na6 {[%clk 0:02:43.4]} 8. Be3 {[%clk 0:02:58.8]}
8... Nc5 {[%clk 0:02:43.4]} 9. b4 {[%clk 0:02:54.3]} 9... Ncd7 {[%clk
0:02:41.9]} 10. h4 {[%clk 0:02:52.9]} 10... a5 {[%clk 0:02:41.4]} 11. a3 {[%clk
0:02:50.9]} 11... axb4 {[%clk 0:02:41.4]} 12. axb4 {[%clk 0:02:51.8]} 12... Rxa1
{[%clk 0:02:39.2]} 13. Qxa1 {[%clk 0:02:52.7]} 13... Qb8 {[%clk 0:02:37.1]} 14.
Nge2 {[%clk 0:02:46.3]} 14... Be7 {[%clk 0:02:36.4]} 15. Ng3 {[%clk 0:02:45.3]}
15... g6 {[%clk 0:02:34.6]} 16. Qc1 {[%clk 0:02:42.5]} 16... h5 {[%clk
0:02:30.4]} 17. g5 {[%clk 0:02:39.9]} 17... Nh7 {[%clk 0:02:26.3]} 18. Bh3
{[%clk 0:02:36.7]} 18... f6 {[%clk 0:02:04.4]} 19. Be6 {[%clk 0:02:15.5]} 19...
Nhf8 {[%clk 0:02:02.1]} 20. Bh3 {[%clk 0:02:13.5]} 20... Nh7 {[%clk 0:02:00]}
21. Rg1 {[%clk 0:01:59.7]} 21... fxg5 {[%clk 0:01:58.7]} 22. hxg5 {[%clk
0:02:00.6]} 22... Qd8 {[%clk 0:01:56.9]} 23. Nxh5 {[%clk 0:01:33.6]} 23... gxh5
{[%clk 0:01:46.9]} 24. g6 {[%clk 0:01:34.5]} 24... Nhf6 {[%clk 0:01:44.4]} 25.
Be6 {[%clk 0:01:29.8]} 25... Rg8 {[%clk 0:01:23.7]} 26. Bh6 {[%clk 0:01:19.5]}
26... Nf8 {[%clk 0:01:15.5]} 27. Bf7+ {[%clk 0:01:06.9]} 27... Kd7 {[%clk
0:01:14.5]} 28. Qg5 {[%clk 0:01:01.8]} 28... Kc8 {[%clk 0:01:09.5]} 29. Qf5+
{[%clk 0:00:57.3]} 29... Kb8 {[%clk 0:01:09.5]} 30. Bxg8 {[%clk 0:00:39.5]}
30... Nxg8 {[%clk 0:01:08.5]} 31. Bxf8 {[%clk 0:00:39.8]} 31... Bxf8 {[%clk
0:01:07.3]} 32. g7 {[%clk 0:00:33.1]} 32... Be7 {[%clk 0:01:00.8]} 33. Qxh5
{[%clk 0:00:32.7]} 33... Bc8 {[%clk 0:00:54.5]} 34. Rh1 {[%clk 0:00:28.3]} 34...
Kb7 {[%clk 0:00:44.5]} 35. Qf7 {[%clk 0:00:27.3]} 35... Bh4+ {[%clk 0:00:44]}
36. Ke2 {[%clk 0:00:25.9]} 36... Qg5 {[%clk 0:00:38]} 37. Rxh4 {[%clk
0:00:17.3]} 37... Qxh4 {[%clk 0:00:36.7]} 38. Qxg8 {[%clk 0:00:17.7]} 38... Qh2+
{[%clk 0:00:36]} 39. Kd3 {[%clk 0:00:17.6]} 39... Qg1 {[%clk 0:00:34.6]} 40. Qf8
{[%clk 0:00:16]} 40... Qd4+ {[%clk 0:00:32.8]} 41. Kc2 {[%clk 0:00:15]} 41...
Qf2+ {[%clk 0:00:27.6]} 42. Kb3 {[%clk 0:00:14.6]} 42... b5 {[%clk 0:00:25.7]}
43. g8=Q {[%clk 0:00:09.3]} 43... bxc4+ {[%clk 0:00:25]} 44. Kxc4 {[%clk
0:00:10.2]} 44... Qf1+ {[%clk 0:00:19.6]} 45. Kb3 {[%clk 0:00:10.3]} 45... Qh3
{[%clk 0:00:20.5]} 46. Qgg7 {[%clk 0:00:05.8]} 46... Bd7 {[%clk 0:00:16.1]} 47.
Qd8 {[%clk 0:00:05.6]} 47... Qxf3 {[%clk 0:00:11.7]} 48. Qdxd7 {[%clk
0:00:04.3]} 48... Qd1+ {[%clk 0:00:12.6]} 49. Nxd1 {[%clk 0:00:04.2]} 1-0